bitfinex/quotes_ETHUSD_20240604
["timestamp","ask_amount","ask_price","bid_price","bid_amount"]
[1717518679832,19.23000001,3811.2,3810.8,5.24817]
[1717518680176,19.23000001,3811.2,3811.0,2.62398]
[1717518680669,19.07533843,3811.2,3811.1,3.0]
[1717518680875,18.65946825,3811.2,3811.1,3.0]
[1717518681772,18.65946825,3811.7,3811.6,2.62357]
[1717518681927,18.65946825,3811.7,3811.6,5.62357]
[1717518682161,18.3346831,3811.7,3811.6,8.24714]
[1717518682362,18.3346831,3811.7,3811.6,5.62357]
[1717518683869,20.16815141,3811.7,3811.6,2.62357]
[1717518684732,20.91815141,3811.7,3811.6,2.62357]
[1717518685291,20.91815141,3811.7,3811.1,2.62384]
[1717518685753,20.91815141,3811.7,3811.4,2.62365]
[1717518686181,20.16815141,3811.7,3811.4,2.62365]
[1717518686335,0.76581982,3811.6,3811.4,2.62365]
[1717518686742,18.3346831,3811.5,3810.3,3.0]
[1717518686947,19.0846831,3811.4,3811.1,2.62384]
[1717518687236,18.3346831,3811.3,3811.1,2.62384]
[1717518689357,18.3346831,3811.2,3811.1,2.62384]
[1717518689891,18.3346831,3811.2,3810.7,2.62417]
[1717518691950,3.1525,3811.1,3810.7,2.62417]
[1717518692853,18.3346831,3811.2,3810.9,2.62402]
[1717518694547,18.3346831,3811.1,3810.9,2.62402]
[1717518698340,20.6837831,3811.1,3810.9,2.62402]
[1717518698525,18.3346831,3811.1,3810.9,2.62402]
[1717518700751,18.3346831,3811.0,3810.9,2.62402]
[1717518703118,18.3346831,3811.0,3810.9,5.62402]
[1717518703119,16.34738355,3811.0,3810.9,5.62402]
[1717518704460,16.34738355,3811.0,3810.9,2.62402]
[1717518708419,15.47748356,3811.0,3810.9,2.62402]
[1717518708650,14.06488356,3811.5,3811.4,2.6237]
[1717518708821,12.87295356,3811.5,3811.4,2.6237]
[1717518709014,12.87295356,3811.5,3811.4,5.6237]
[1717518709015,12.59295799,3811.5,3811.4,5.6237]
[1717518709464,12.59295799,3811.5,3811.4,8.2474]
[1717518710354,12.59295799,3811.5,3811.4,5.6237]
[1717518712269,12.59295799,3811.6,3811.4,5.6237]
[1717518712447,12.59295799,3811.6,3811.5,3.0]
[1717518715863,12.59295799,3811.6,3811.4,2.6237]
[1717518717948,12.59295799,3811.5,3811.4,2.6237]
[1717518718282,14.8297433,3811.5,3811.4,2.6237]
[1717518718636,12.59295799,3811.5,3811.4,2.6237]
[1717518721094,12.59295799,3811.5,3811.0,2.62396]
[1717518721095,0.75,3811.4,3811.0,2.62396]
[1717518721262,0.75,3811.2,3811.0,2.62396]
[1717518721458,2.3300258,3811.2,3811.0,2.62396]
[1717518723019,1.5800258,3811.2,3811.0,2.62396]
[1717518723176,0.54700693,3811.3,3811.0,2.62396]
[1717518723569,15.80025799,3811.5,3811.4,2.6237]
[1717518723797,12.59295799,3811.5,3811.4,2.6237]
[1717518724709,0.75,3812.2,3811.4,2.6237]
[1717518724710,12.59295799,3811.7,3811.4,5.2474]
[1717518725019,12.3448625,3811.7,3811.6,2.62357]
[1717518725813,11.48006251,3811.7,3811.6,2.62357]
[1717518726023,11.48006251,3811.7,3811.6,5.62357]
[1717518726231,6.66019513,3812.2,3811.7,1.3237]
[1717518726523,10.67757654,3812.6,3812.5,2.62295]
[1717518727706,11.82033419,3812.6,3812.5,2.62295]
[1717518728329,10.67757654,3812.6,3812.5,2.62295]
[1717518731033,10.67757654,3812.6,3812.5,5.62295]
[1717518731435,10.67757654,3812.6,3812.5,8.2459]
[1717518731934,10.67757654,3813.1,3813.0,2.6226]
[1717518732938,10.67757654,3813.1,3813.0,5.2452]
[1717518733230,10.67757654,3813.1,3813.0,8.2452]
[1717518733452,10.67757654,3813.1,3813.0,5.2452]
[1717518733766,10.67757654,3813.1,3813.0,8.2452]
[1717518735198,9.80117654,3813.1,3813.0,8.2452]
[1717518735625,6.66019513,3813.8,3813.7,2.62212]
[1717518735824,9.80117654,3814.1,3813.7,2.62212]
[1717518737042,11.05395651,3814.1,3813.7,2.62212]
[1717518737842,9.80117654,3814.1,3813.7,2.62212]
[1717518740322,10.55117654,3814.1,3813.7,2.62212]
[1717518740557,0.75,3813.9,3813.7,2.62212]
[1717518740872,9.80117654,3814.1,3813.7,2.62212]
[1717518740873,2.4131,3814.0,3813.7,2.62212]
[1717518741214,0.75,3813.8,3813.7,2.62212]
[1717518741556,2.04642765,3813.8,3813.7,2.62212]
[1717518742131,2.04642765,3813.8,3812.1,1.3237]
[1717518742455,0.75,3813.3,3813.2,2.62246]
[1717518743042,1.29642765,3813.8,3813.2,2.62246]
[1717518743043,0.75,3813.5,3813.2,2.62246]
[1717518743264,0.75,3813.0,3812.8,2.6227]
[1717518743571,1.05645,3813.0,3812.8,2.6227]
[1717518743710,0.75,3813.3,3812.8,2.6227]
[1717518744729,0.75,3813.3,3813.1,2.62251]
[1717518745051,7.41019513,3813.5,3813.1,2.62251]
[1717518745834,0.75,3813.3,3813.1,2.62251]
[1717518746263,7.41019513,3813.5,3813.1,2.62251]
[1717518746570,0.75,3813.3,3813.1,2.62251]
[1717518746858,9.50966506,3813.5,3813.1,2.62251]
[1717518747066,6.66019513,3813.5,3813.1,2.62251]
[1717518747268,9.80117654,3813.7,3813.6,2.62219]
[1717518747417,9.80117654,3813.8,3813.6,2.62219]
[1717518748364,9.80117654,3813.8,3813.6,5.24438]
[1717518749056,9.80117654,3813.8,3813.7,3.0]
[1717518752269,9.80117654,3813.8,3813.6,2.62219]
[1717518753346,10.55117654,3813.9,3813.6,2.62219]
[1717518753555,9.80117654,3813.9,3813.6,2.62219]
[1717518754158,0.75,3813.8,3813.6,2.62219]
[1717518754881,0.75,3813.6,3812.9,3.0]
[1717518755092,0.75,3813.6,3812.7,3.0]
[1717518756136,9.80117654,3813.8,3813.4,2.6223]
[1717518757142,10.55117654,3813.8,3813.4,2.6223]
[1717518757332,1.72113717,3813.7,3813.4,2.6223]
[1717518757732,9.80117654,3813.8,3813.4,2.6223]
[1717518759057,6.66019513,3813.9,3813.4,2.6223]
[1717518759241,7.41019513,3813.9,3813.4,2.6223]
[1717518759737,7.41019513,3813.9,3813.7,2.62207]
[1717518759935,6.66019513,3813.9,3813.7,2.62207]
[1717518762835,1.3551,3814.3,3814.2,2.62178]
[1717518763086,2.17213796,3814.5,3814.2,10.86534]
[1717518763251,11.45826606,3814.6,3814.4,5.24328]
[1717518763779,11.45826606,3814.6,3814.5,3.0]
[1717518763981,9.80117654,3815.2,3814.7,2.62143]
[1717518764167,9.80117654,3815.2,3814.8,3.0]
[1717518765744,9.80117654,3815.2,3815.1,2.62116]
[1717518768086,17.10117654,3815.9,3815.8,2.62068]
[1717518768285,0.31685,3816.1,3815.8,2.62068]
[1717518770475,12.20826606,3816.2,3815.8,2.62068]
[1717518770668,11.45826606,3816.2,3815.8,2.62068]
[1717518773709,17.85117654,3816.3,3816.1,2.62043]
[1717518773710,8.05,3816.3,3816.1,2.62043]
[1717518775992,8.05,3816.3,3815.7,2.62071]
[1717518776187,0.75,3815.9,3815.7,2.62071]
[1717518779032,0.75,3815.8,3815.7,2.62071]
[1717518781529,0.75,3816.0,3815.7,2.62071]
[1717518782594,8.05,3816.3,3816.1,2.62043]
[1717518782809,9.09685,3816.3,3816.1,2.62043]
[1717518783188,0.75,3816.0,3815.7,2.62069]
[1717518785690,8.34685,3816.3,3816.1,2.62046]
[1717518785691,9.09685,3816.3,3816.1,2.62046]
[1717518786127,0.75,3815.5,3814.8,3.0]
[1717518786330,8.05,3815.9,3815.8,2.62068]
[1717518786633,1.06033133,3815.9,3815.8,2.62068]
[1717518786841,0.75,3815.9,3815.8,2.62068]
[1717518787196,0.75,3815.5,3815.4,2.62094]
[1717518789338,0.75,3815.9,3815.8,2.62063]
[1717518791414,0.75,3816.2,3816.0,2.62047]
[1717518792866,7.3,3816.5,3815.3,2.62102]
[1717518792867,0.75,3815.5,3815.3,2.62102]
[1717518795855,8.05,3816.0,3815.9,2.62061]
[1717518798671,8.75488615,3816.0,3815.9,2.62061]
[1717518799630,8.05,3816.0,3815.9,2.62061]
[1717518800146,0.75,3816.0,3815.9,2.62061]
[1717518800830,0.75,3816.3,3815.3,2.62099]
[1717518801028,0.75,3816.3,3816.2,2.6204]
[1717518801732,7.3,3816.5,3816.2,2.6204]
[1717518801927,8.05,3816.5,3816.2,2.6204]
[1717518802127,10.70030545,3816.5,3816.2,2.6204]
[1717518806057,3.40030545,3816.5,3816.2,2.6204]
[1717518806262,3.40030545,3816.5,3815.6,3.0]
[1717518806467,0.75,3816.0,3815.7,2.62074]
[1717518806661,0.75,3816.0,3815.8,3.0]
[1717518806861,0.75,3816.0,3815.8,2.62068]
[1717518807685,0.9615042,3816.0,3815.8,2.62068]
[1717518808246,0.54700693,3815.9,3815.8,2.62068]
[1717518809290,1.77953927,3816.0,3815.8,2.62068]
[1717518809873,0.75,3815.4,3815.0,2.62119]
[1717518810184,0.75,3815.4,3814.1,1.35678903]
[1717518810185,0.75,3815.1,3814.8,2.62131]
[1717518810582,1.29936838,3815.1,3814.8,2.62131]
[1717518811354,0.75,3815.1,3814.8,2.62131]
[1717518811579,0.54936838,3815.2,3814.8,2.62131]
[1717518811763,0.54936838,3815.3,3815.2,2.62109]
[1717518812002,1.36569227,3815.8,3815.7,2.62075]
[1717518812003,0.54936838,3815.8,3815.7,2.62075]
[1717518812556,0.54936838,3815.9,3815.7,2.62075]
[1717518812755,0.54936838,3816.0,3815.7,2.62075]
[1717518813033,0.54936838,3816.1,3815.9,2.62061]
[1717518813181,0.75,3816.3,3815.9,2.62061]
[1717518814794,0.75,3816.1,3815.9,2.62061]
[1717518815597,0.54936838,3816.3,3815.9,2.62061]
[1717518815965,0.54936838,3816.3,3815.2,2.8839817]
[1717518815966,9.80117654,3816.4,3816.3,2.62033]
[1717518816594,10.21169312,3816.4,3816.3,2.62033]
[1717518816899,10.35017161,3816.4,3816.3,2.62033]
[1717518817061,9.80117654,3816.4,3816.3,2.62033]
[1717518817257,10.35017035,3816.4,3816.3,2.62033]
[1717518817456,12.23017035,3816.4,3816.3,2.62033]
[1717518817782,2.42899381,3816.4,3816.3,2.62033]
[1717518819063,1.88,3816.4,3816.3,2.62033]
[1717518819482,2.42899381,3816.4,3816.3,2.62033]
[1717518819996,1.88,3816.4,3816.3,2.62033]
[1717518821058,2.42899381,3816.4,3816.3,2.62033]
[1717518822099,1.88,3816.4,3816.3,2.62033]
[1717518822959,2.42899381,3816.4,3816.3,2.62033]
[1717518824216,1.88,3816.4,3816.3,2.62033]
[1717518824905,3.61283076,3816.4,3816.3,2.62033]
[1717518825236,3.06396162,3816.4,3816.3,2.62033]
[1717518827205,3.6128836,3816.4,3816.3,2.62033]
[1717518827566,3.58414106,3816.4,3816.3,2.62033]
[1717518828606,3.58414106,3816.4,3816.0,2.62051]
[1717518828607,0.75,3816.1,3816.0,2.62051]
[1717518829795,0.82347855,3816.2,3816.0,2.62051]
[1717518829998,0.54898829,3816.1,3816.0,2.62051]
[1717518830903,0.54898829,3816.2,3816.0,2.62051]
[1717518831122,2.42898829,3816.4,3816.3,2.62033]
[1717518832574,1.88,3816.4,3816.3,5.24066]
[1717518832711,1.88,3816.4,3816.3,2.62033]
[1717518834606,2.42898829,3816.4,3816.3,2.61155732]
[1717518835198,1.88,3816.4,3816.3,2.61155732]
[1717518842250,3.17801648,3816.4,3816.3,2.61155732]
[1717518842785,0.75,3816.1,3816.0,2.62049]
[1717518844394,0.75,3815.4,3815.3,2.62097]
[1717518844908,2.63,3815.4,3815.3,2.62097]
[1717518845160,0.75,3815.0,3814.9,2.6213]
[1717518853364,2.63,3815.0,3814.9,2.6213]
[1717518854050,0.75,3814.6,3813.7,4.3237]
[1717518854259,1.88,3814.2,3813.9,2.62197]
[1717518854453,1.88,3814.2,3814.1,2.62185]
[1717518855954,0.75,3813.9,3813.2,2.62245]
[1717518856163,1.88,3813.3,3813.2,2.62245]
[1717518856564,2.63,3813.3,3813.2,2.62245]
[1717518857455,1.88,3813.3,3813.2,2.62245]
[1717518863678,7.3,3814.0,3813.7,2.62212]
[1717518863679,8.05,3814.0,3813.7,2.62212]
[1717518863881,1.88,3813.8,3813.7,2.62212]
[1717518865007,2.63,3813.8,3813.7,2.62212]
[1717518865977,1.88,3813.8,3813.7,2.62212]
[1717518866180,7.3,3814.0,3813.7,2.62212]
[1717518866547,1.88,3813.8,3813.7,5.24424]
[1717518866843,1.88,3813.8,3813.7,5.79424]
[1717518866976,1.88,3813.8,3813.7,7.11794]
[1717518867181,7.3,3814.0,3813.7,10.11794]
[1717518867490,9.80117654,3814.1,3813.9,5.24396]
[1717518867723,1.88,3814.2,3813.9,5.24396]
[1717518871701,1.88,3814.2,3813.9,2.62198]
[1717518872221,0.75,3814.1,3813.9,2.62198]
[1717518875235,1.88,3814.2,3813.9,2.62198]
[1717518875526,1.88,3814.2,3813.9,5.24396]
[1717518876831,8.05,3814.6,3814.2,2.62174]
[1717518877132,2.63,3814.3,3814.2,2.62174]
[1717518877427,3.623,3814.3,3814.2,2.62174]
[1717518878529,1.743,3814.3,3814.2,2.62174]
[1717518878690,1.88,3814.3,3814.2,2.62178]
[1717518878896,8.05,3814.6,3814.5,2.62157]
[1717518879138,7.3,3814.6,3814.5,2.62157]
[1717518879292,1.88,3814.6,3814.5,2.62157]
[1717518879492,9.80117654,3815.1,3814.1,1.3237]
[1717518879800,7.3,3815.2,3815.0,2.62123]
[1717518880002,9.80117654,3815.4,3815.0,2.62123]
[1717518880341,9.80117654,3815.4,3815.0,5.24246]
[1717518880730,9.80117654,3815.4,3815.0,2.62123]
[1717518881430,9.80117654,3815.4,3815.2,2.62109]
[1717518881595,9.80117654,3815.4,3815.3,3.0]
[1717518882206,8.70787654,3815.4,3815.3,3.55]
[1717518882991,8.63787654,3815.4,3815.3,3.55]
[1717518883397,7.3,3815.8,3815.4,2.62092]
[1717518883601,7.3,3815.8,3815.6,2.62081]
[1717518884493,7.16740959,3815.8,3815.6,2.62081]
[1717518884811,7.01740959,3815.8,3815.7,0.55]
[1717518885011,6.90740959,3815.8,3815.7,0.55]
[1717518886894,6.90740959,3815.8,3815.6,2.62081]
[1717518887395,6.90740959,3815.8,3815.6,5.24162]
[1717518887596,6.90740959,3815.8,3815.7,0.55]
[1717518887994,8.37287654,3816.4,3815.7,0.55]
[1717518887995,8.37287654,3816.4,3815.8,2.62064]
[1717518888194,8.78740959,3816.5,3815.8,2.62064]
[1717518888441,8.78740959,3816.5,3816.3,2.62033]
[1717518888944,11.43771504,3816.5,3816.3,2.62033]
[1717518889236,12.18771504,3816.5,3816.3,2.62033]
[1717518889616,11.43771504,3816.5,3816.3,2.62033]
[1717518889826,0.75,3816.4,3816.3,2.62033]
[1717518894633,0.75,3816.4,3816.0,2.62052]
[1717518894829,2.63,3816.1,3816.0,2.62052]
[1717518895262,2.63,3816.1,3815.3,3.0]
[1717518895263,2.411,3816.0,3815.6,2.6208]
[1717518895407,1.88,3815.7,3815.6,2.6208]
[1717518899011,1.88,3815.7,3814.1,2.62179]
[1717518899335,0.75,3815.8,3813.2,1.88]
[1717518899336,1.88,3814.7,3814.6,2.6215]
[1717518900252,2.63,3814.7,3814.6,2.6215]
[1717518901016,1.88,3815.3,3815.2,2.62109]
[1717518902078,0.75,3815.2,3814.9,2.62128]
[1717518902372,0.75,3815.0,3814.9,2.62128]
[1717518902917,0.75,3815.2,3814.9,2.62128]
[1717518905846,1.88,3815.3,3815.2,2.62109]
[1717518906044,8.37287654,3815.5,3815.2,5.24218]
[1717518906262,6.90740959,3815.8,3815.6,2.62081]
[1717518907641,0.75,3815.7,3815.6,2.62081]
[1717518908490,1.79353508,3815.7,3815.6,2.62081]
[1717518909211,6.90740959,3815.8,3815.6,2.62081]
[1717518909620,6.90740959,3815.8,3815.6,5.24162]
[1717518910554,6.90740959,3815.8,3815.7,0.55]
[1717518911435,8.37287654,3815.9,3815.8,2.62068]
[1717518913619,8.37287654,3815.9,3815.8,5.24136]
[1717518914492,1.88,3816.3,3815.8,5.24136]
[1717518914493,1.88,3816.3,3816.2,2.6204]
[1717518918927,2.143,3816.3,3816.2,2.6204]
[1717518920403,2.143,3816.3,3815.6,0.25806721]
[1717518920605,0.75,3816.0,3815.9,2.62058]
[1717518920811,2.63,3816.0,3815.9,2.62058]
[1717518922249,0.75,3815.7,3815.5,2.62082]
[1717518922449,1.88,3815.6,3815.5,2.62082]
[1717518924437,2.42889297,3815.6,3815.5,2.62082]
[1717518924688,1.88,3815.6,3815.5,2.62082]
[1717518931497,0.75,3815.9,3815.8,2.62068]
[1717518931911,8.37287654,3816.0,3815.8,2.62068]
[1717518932208,1.88,3816.1,3815.8,2.62068]
[1717518933076,1.88,3816.1,3816.0,2.62054]
[1717518933279,3.28158695,3816.1,3816.0,2.62054]
[1717518933480,3.28158695,3816.1,3816.0,2.68455179]
[1717518933695,3.28158695,3816.1,3816.0,2.62054]
[1717518933858,3.83047992,3816.1,3816.0,2.62054]
[1717518934782,0.75,3815.5,3815.0,2.62119]
[1717518935095,0.75,3815.5,3814.5,2.62152]
[1717518935096,0.75,3815.3,3815.1,2.62116]
[1717518935278,0.75,3815.3,3815.1,2.68538588]
[1717518935982,0.75,3815.3,3815.1,2.62116]
[1717518936379,0.75,3815.3,3815.2,0.06419116]
[1717518937097,0.75,3815.5,3815.3,2.62102]
[1717518939299,0.75,3815.5,3815.4,0.06427044]
[1717518939474,0.75,3815.5,3815.3,2.62102]
[1717518940097,0.82347855,3815.8,3815.6,2.62081]
[1717518940098,1.29881615,3815.7,3815.6,2.62081]
[1717518940306,2.63,3815.7,3815.6,2.62081]
[1717518940502,0.54881615,3815.8,3815.6,2.62081]
[1717518940671,3.17881615,3815.9,3815.6,2.62081]
[1717518941011,2.63,3815.9,3815.6,2.62081]
[1717518942728,2.63,3815.9,3815.8,2.62068]
[1717518943084,2.63,3815.9,3815.8,2.68493355]
[1717518943335,3.17881615,3815.9,3815.8,2.68493355]
[1717518943740,3.17881615,3815.9,3815.8,2.62068]
[1717518944632,2.63,3815.9,3815.8,2.62068]
[1717518944787,3.17887999,3815.9,3815.8,2.62068]
[1717518946186,3.45347855,3815.9,3815.8,2.62068]
[1717518946502,2.63,3815.9,3815.8,2.62068]
[1717518946705,2.63,3815.9,3815.8,2.68482219]
[1717518946917,2.63,3815.9,3815.8,2.62068]
[1717518947110,3.1789013,3815.9,3815.8,2.68487618]
[1717518947621,2.63,3815.9,3815.8,2.68487618]
[1717518948231,1.88,3815.9,3815.8,2.68487618]
[1717518948598,1.88,3815.9,3815.8,5.30555618]
[1717518948928,8.92177784,3816.2,3816.1,5.24094]
[1717518949133,8.37287654,3816.2,3816.1,5.24094]
[1717518949290,8.37287654,3816.2,3816.1,5.30289008]
[1717518950143,8.37287654,3816.2,3816.1,2.68242008]
[1717518950713,10.96879528,3816.2,3816.1,2.68242008]
[1717518951343,10.96879528,3816.2,3816.1,2.62047]
[1717518951642,10.21879528,3816.2,3816.1,2.62047]
[1717518951931,10.96879528,3816.2,3816.1,2.62047]
[1717518952229,9.67177784,3816.2,3816.1,2.62047]
[1717518952401,2.4289013,3816.3,3816.1,2.68253112]
[1717518952602,1.88,3816.3,3816.1,2.68253112]
[1717518952921,0.75,3816.2,3816.1,2.62047]
[1717518953093,2.4289013,3816.3,3816.1,2.62047]
[1717518953296,2.4289013,3816.3,3816.1,2.68253112]
[1717518953494,1.88,3816.3,3816.1,2.68253112]
[1717518953730,0.75,3816.2,3816.1,2.62047]
[1717518953890,1.15517778,3816.2,3816.1,2.62047]
[1717518954096,1.15517778,3816.2,3816.1,2.68231516]
[1717518954297,3.49157778,3816.2,3816.1,2.68231516]
[1717518954605,0.75,3815.9,3815.8,2.62064]
[1717518954836,3.17904063,3815.9,3815.8,2.62064]
[1717518954997,3.48857605,3815.9,3815.8,2.62064]
[1717518956124,4.312137,3815.9,3815.8,2.62064]
[1717518956835,3.562137,3815.9,3815.8,2.62064]
[1717518957038,4.312137,3815.9,3815.8,2.62064]
[1717518957238,3.48857605,3815.9,3815.8,2.62064]
[1717518957557,4.58015718,3815.9,3815.8,2.62064]
[1717518957695,0.75,3815.3,3814.8,0.25805064]
[1717518957892,1.88,3815.0,3814.8,2.62136]
[1717518958198,1.88,3815.0,3814.9,0.06200598]
[1717518958436,1.88,3815.0,3814.8,2.62136]
[1717518958619,1.88,3815.0,3814.9,0.06200598]
[1717518958995,1.88,3815.0,3814.8,2.62136]
[1717518959249,1.88,3815.0,3814.9,0.06200598]
[1717518959394,1.88,3815.0,3814.8,2.62136]
[1717518959737,1.88,3815.0,3814.9,0.06200598]
[1717518960097,1.88,3815.0,3814.8,2.62136]
[1717518960098,0.75,3814.9,3814.8,2.62136]
[1717518960296,0.31791031,3814.9,3814.8,2.62136]
[1717518960516,1.61701342,3814.9,3814.8,2.62136]
[1717518960847,1.06791031,3814.9,3814.8,2.62136]
[1717518961000,1.89156498,3814.9,3814.8,2.62136]
[1717518961198,1.06791031,3814.9,3814.8,2.62136]
[1717518961946,0.75,3814.9,3814.8,2.62136]
[1717518962255,2.63,3814.9,3814.8,2.62136]
[1717518962435,4.9136,3814.9,3814.8,2.62136]
[1717518962614,5.46272464,3814.9,3814.8,2.62136]
[1717518962956,0.75,3814.6,3814.5,2.62155]
[1717518963103,0.5489706,3814.7,3814.5,2.62155]
[1717518963296,0.75,3814.6,3814.5,0.06097343]
[1717518963494,0.75,3813.9,3813.7,2.62206]
[1717518963729,2.3526,3814.2,3812.7,0.54112017]
[1717518963730,0.75,3813.6,3812.7,0.54112017]
[1717518964041,0.75,3813.6,3812.5,0.54112017]
[1717518964042,0.75,3812.6,3812.5,0.54112017]
[1717518964259,0.75,3812.3,3812.2,2.62314]
[1717518964652,1.88,3812.6,3812.2,2.62314]
[1717518964653,0.75,3812.5,3812.2,2.62314]
[1717518964809,0.75,3812.3,3812.2,2.62314]
[1717518965011,2.63,3812.3,3812.2,2.62314]
[1717518965343,2.63,3812.3,3811.2,2.6238]
[1717518965344,0.75,3811.9,3811.8,2.62342]
[1717518967203,0.67134965,3811.9,3811.8,2.62342]
[1717518967807,0.67134965,3811.9,3809.9,0.262]
[1717518967808,3.00354965,3811.8,3809.6,5.38194]
[1717518968054,0.67134965,3811.8,3811.4,2.62365]
[1717518968303,1.88,3811.5,3811.4,2.62365]
[1717518968477,0.67134965,3812.3,3812.1,2.62316]
[1717518968848,0.67134965,3812.6,3812.4,2.62297]
[1717518969197,1.88,3812.5,3812.4,2.62297]
[1717518970787,1.88,3812.5,3812.0,2.62328]
[1717518970788,0.67134965,3812.1,3812.0,2.62328]
[1717518970946,2.55134965,3812.1,3812.0,2.62328]
[1717518971149,2.55134965,3812.1,3812.0,2.68298224]
[1717518971395,1.88,3812.1,3812.0,2.68298224]
[1717518971767,2.55134965,3812.1,3812.0,2.68298224]
[1717518972296,0.67134965,3812.5,3812.4,2.62301]
[1717518972595,2.55134965,3812.5,3812.4,2.62301]
[1717518972794,2.55134965,3812.5,3812.4,2.68260741]
[1717518973457,2.4811,3813.2,3812.9,2.62267]
[1717518973458,10.25287654,3813.1,3812.9,2.62267]
[1717518973705,8.37287654,3813.1,3812.9,2.62267]
[1717518973874,8.37287654,3813.1,3813.0,0.05927515]
[1717518974207,8.37287654,3813.1,3812.9,2.62267]
[1717518975275,10.25287654,3813.1,3812.9,2.62267]
[1717518975672,10.92422619,3813.1,3812.9,2.62267]
[1717518976265,10.25287654,3813.1,3812.9,2.62267]
[1717518976464,10.25287654,3813.1,3813.0,0.05915527]
[1717518977281,0.67134965,3813.0,3812.9,2.62267]
[1717518977588,10.25287654,3813.1,3812.9,2.62267]
[1717518977991,10.25287654,3813.1,3813.0,0.05871314]
[1717518978362,8.37287654,3813.1,3813.0,0.05871314]
[1717518978763,8.37287654,3813.4,3813.1,2.62253]
[1717518979081,0.67134965,3813.4,3813.3,2.6224]
[1717518979685,1.88,3813.5,3813.3,2.6224]
[1717518980889,1.88,3813.5,3813.4,0.05830768]
[1717518981084,1.88,3813.5,3813.3,2.6224]
[1717518981290,1.88,3813.5,3813.4,0.0582988]
[1717518981573,1.88,3813.5,3813.3,2.6224]
[1717518981796,1.88,3813.5,3813.4,0.0582988]
[1717518982117,1.88,3813.5,3813.3,2.6224]
[1717518982417,1.88,3813.5,3813.4,0.05821811]
[1717518982710,1.88,3813.5,3813.3,5.2448]
[1717518982919,6.90740959,3813.8,3813.7,2.62212]
[1717518983410,6.90740959,3813.8,3813.7,2.6801679]
[1717518983826,6.90740959,3813.8,3813.7,2.62212]
[1717518985120,7.57875924,3813.8,3813.7,2.62212]
[1717518986720,7.57875924,3813.8,3813.7,2.68017463]
[1717518987228,10.22906469,3813.8,3813.7,2.62212]
[1717518987418,10.22906469,3813.8,3812.9,3.0]
[1717518987419,0.67134965,3813.5,3813.4,2.62231]
[1717518987735,2.55134965,3813.5,3813.4,2.62231]
[1717518991824,6.90740959,3813.8,3813.7,2.62212]
[1717518992213,6.90740959,3813.8,3813.7,5.24424]
[1717518992522,6.90740959,3813.8,3813.7,5.30231479]
[1717518993113,6.90740959,3813.8,3813.7,8.30231479]
[1717518993630,8.37287654,3814.0,3813.7,8.30231479]
[1717518994008,8.37287654,3814.0,3813.7,10.92443479]
[1717518994212,8.37287654,3814.0,3813.9,7.86594]
[1717518994396,6.90740959,3814.5,3814.4,2.62164]
[1717518994821,6.90740959,3814.5,3814.4,2.67924399]
[1717518995020,6.90740959,3814.5,3814.4,5.30088399]
[1717518995209,8.37287654,3814.6,3814.4,8.30088399]
[1717518997545,0.67134965,3814.5,3814.4,5.67924399]
[1717518999585,0.67134965,3814.5,3814.4,5.62164]
[1717518999756,0.67134965,3814.5,3814.4,2.62164]
[1717519003256,2.14000204,3815.0,3814.5,2.62157]
[1717519003472,11.82655858,3815.3,3814.9,2.6213]
[1717519003703,9.15244128,3815.2,3814.9,2.6213]
[1717519004078,7.57875924,3815.2,3814.9,2.6213]
[1717519004483,8.98733267,3815.2,3814.9,2.6213]
[1717519004805,0.67134965,3815.0,3814.9,2.6213]
[1717519007369,2.55134965,3815.0,3814.9,2.6213]
[1717519007808,0.67134965,3815.0,3814.9,2.6213]
[1717519008035,7.57875924,3815.2,3814.9,5.2426]
[1717519008234,0.67134965,3815.2,3814.9,5.2426]
[1717519008521,0.67134965,3815.2,3815.1,2.62116]
[1717519008871,8.37287654,3815.3,3815.1,2.67773894]
[1717519009072,8.37287654,3815.3,3815.1,5.24232]
[1717519009717,10.25287654,3815.3,3815.1,5.24232]
[1717519010172,10.66350139,3815.3,3815.1,5.24232]
[1717519010571,11.33485104,3815.3,3815.1,5.24232]
[1717519011495,11.33485104,3815.3,3815.1,2.62116]
[1717519011897,12.78280848,3815.3,3815.1,2.62116]
[1717519013001,11.33485104,3815.3,3815.1,2.62116]
[1717519014101,2.9619745,3815.3,3815.1,2.62116]
[1717519018330,2.55134965,3815.3,3815.1,2.62116]
[1717519019390,9.04422619,3815.5,3815.4,2.62095]
[1717519019703,9.04422619,3815.5,3815.4,2.67551342]
[1717519019704,2.55134965,3815.5,3815.4,2.67551342]
[1717519020851,1.88,3815.5,3815.4,5.29646342]
[1717519021063,8.37287654,3815.7,3815.4,7.91741342]
[1717519021206,8.37287654,3815.7,3815.4,10.91741342]
[1717519021407,8.37287654,3815.7,3815.6,5.24162]
[1717519021655,8.78345124,3815.7,3815.6,5.24162]
[1717519021958,8.78345124,3815.7,3815.6,5.29602574]
[1717519022248,10.66345124,3815.7,3815.6,2.67521574]
[1717519022807,11.33480089,3815.7,3815.6,2.67521574]
[1717519023256,11.33480089,3815.7,3815.6,2.62081]
[1717519023813,11.33480089,3815.7,3815.6,2.67514184]
[1717519024341,11.33480089,3815.7,3815.6,2.62081]
[1717519024543,10.66345124,3815.7,3815.6,2.62081]
[1717519024911,11.33480089,3815.7,3815.6,2.67514184]
[1717519025760,2.96192435,3815.7,3815.6,2.67514184]
[1717519026570,7.1995454,3815.7,3815.6,0.05433184]
[1717519026712,5.37532435,3815.7,3815.6,0.05433184]
[1717519026909,0.67134965,3815.5,3815.4,2.62091]
[1717519027111,4.7039747,3815.7,3815.4,2.62091]